bitfinex/quotes_SOLUSD_20240622
["timestamp","ask_amount","ask_price","bid_price","bid_amount"]
[1719048761289,7.4349,134.5,134.46,7.437]
[1719048761490,6.51,134.5,134.47,7.4366]
[1719048761796,6.51,134.5,134.46,7.4369]
[1719048762995,6.51,134.5,134.47,7.4364]
[1719048764586,6.51,134.51,134.47,7.4364]
[1719048764989,13.9444,134.51,134.47,7.4364]
[1719048765195,7.4349,134.5,134.46,7.437]
[1719048765399,13.9449,134.5,134.46,7.437]
[1719048765692,13.9449,134.5,134.45,7.4374]
[1719048766076,6.51,134.49,134.45,7.4374]
[1719048767393,6.51,134.49,134.46,7.4371]
[1719048767599,6.51,134.49,134.45,7.4374]
[1719048768492,6.51,134.47,134.44,7.438]
[1719048769192,6.51,134.48,134.45,7.4376]
[1719048770094,22.9748,134.49,134.45,7.4376]
[1719048774404,30.4103,134.49,134.45,7.4376]
[1719048775303,16.4648,134.49,134.45,7.4376]
[1719048775502,6.51,134.5,134.46,7.4366]
[1719048776509,7.4346,134.51,134.46,7.4366]
[1719048776804,13.9446,134.51,134.46,7.4366]
[1719048777907,7.435,134.5,134.46,7.4366]
[1719048781413,22.8553,134.55,134.47,6.51]
[1719048781618,13.9428,134.54,134.49,13.9453]
[1719048782283,7.4333,134.53,134.49,6.51]
[1719048782912,7.4333,134.53,134.48,14.1159]
[1719048783114,7.4338,134.52,134.48,14.1159]
[1719048783896,7.4338,134.52,134.48,6.68]
[1719048784096,7.4343,134.51,134.47,23.9397]
[1719048784421,7.4343,134.51,134.47,30.4497]
[1719048784712,13.944,134.52,134.47,30.4497]
[1719048785013,7.434,134.52,134.47,30.4497]
[1719048785216,13.9434,134.53,134.48,7.436]
[1719048785510,7.4334,134.53,134.48,13.946]
[1719048785715,13.9428,134.54,134.49,7.4352]
[1719048786286,7.4333,134.53,134.49,7.4352]
[1719048787390,7.4333,134.53,134.48,13.9458]
[1719048787806,13.9433,134.53,134.48,7.4358]
[1719048788007,13.9439,134.52,134.47,23.9397]
[1719048790011,7.4339,134.52,134.47,23.9397]
[1719048790218,13.9439,134.52,134.47,23.9397]
[1719048790924,6.51,134.52,134.48,7.4359]
[1719048798112,7.4335,134.53,134.48,7.4359]
[1719048798312,13.9435,134.53,134.48,7.4359]
[1719048799944,6.51,134.54,134.5,7.4349]
[1719048800734,13.9427,134.54,134.5,7.4349]
[1719048801234,13.9427,134.54,134.49,7.4353]
[1719048801602,6.51,134.53,134.49,7.4353]
[1719048801803,7.4339,134.52,134.48,7.4358]
[1719048802021,13.9439,134.52,134.48,7.4358]
[1719048803038,13.9439,134.52,134.47,30.4497]
[1719048803612,13.9439,134.52,134.48,7.4359]
[1719048804342,13.9434,134.53,134.48,7.4359]
[1719048804712,7.4338,134.52,134.48,7.4359]
[1719048805115,13.9434,134.53,134.48,7.4359]
[1719048806715,13.944,134.52,134.47,30.4497]
[1719048807311,6.51,134.52,134.48,7.4358]
[1719048809224,6.51,134.52,134.47,7.4363]
[1719048809425,6.51,134.5,134.46,7.4367]
[1719048809935,6.51,134.5,134.47,7.4365]
[1719048810512,6.51,134.49,134.45,7.4373]
[1719048813430,13.9452,134.5,134.45,7.4373]
[1719048816658,7.4355,134.49,134.44,30.5932]
[1719048825135,13.9455,134.49,134.44,30.5932]
[1719048825339,7.436,134.48,134.43,13.9485]
[1719048825631,13.946,134.48,134.43,13.9485]
[1719048826443,7.436,134.48,134.43,13.9485]
[1719048826971,6.51,134.49,134.44,7.4381]
[1719048827270,13.9457,134.49,134.44,13.9481]
[1719048828564,7.4361,134.48,134.44,13.9481]
[1719048829966,7.4361,134.48,134.44,6.51]
[1719048833146,7.4351,134.5,134.45,6.51]
[1719048833353,7.4346,134.51,134.47,6.51]
[1719048833877,7.434,134.52,134.47,13.9464]
[1719048834249,7.4345,134.51,134.47,6.51]
[1719048839178,6.51,134.56,134.5,13.9448]
[1719048839371,7.4324,134.55,134.51,6.51]
[1719048839673,7.4318,134.56,134.51,13.9443]
[1719048840090,7.4322,134.55,134.51,6.51]
[1719048840576,22.7767,134.59,134.52,6.51]
[1719048840761,7.4306,134.58,134.53,6.51]
[1719048840960,7.4306,134.58,134.53,13.9429]
[1719048841556,7.4316,134.56,134.52,13.9435]
[1719048841754,7.4316,134.56,134.52,6.51]
[1719048842087,7.4312,134.57,134.52,13.9437]
[1719048842878,7.4312,134.57,134.51,0.17]
[1719048842879,6.51,134.57,134.51,7.4342]
[1719048843066,7.4318,134.56,134.51,13.9442]
[1719048843271,6.51,134.57,134.5,0.17]
[1719048843457,6.51,134.57,134.51,6.51]
[1719048843782,7.4319,134.56,134.51,13.944]
[1719048844689,7.4319,134.56,134.52,7.4338]
[1719048845051,13.9413,134.57,134.52,7.4338]
[1719048845252,18.575,134.59,134.53,7.4331]
[1719048845253,6.51,134.58,134.53,7.4331]
[1719048845977,6.51,134.58,134.54,7.4325]
[1719048846283,7.4304,134.59,134.55,7.4321]
[1719048846585,13.9404,134.59,134.53,6.51]
[1719048846951,13.9404,134.59,134.54,7.4325]
[1719048849075,7.4296,134.6,134.55,7.4318]
[1719048849406,13.94,134.59,134.54,13.9424]
[1719048850595,7.43,134.59,134.54,13.9424]
[1719048851306,7.4295,134.6,134.55,7.4319]
[1719048851601,13.9395,134.6,134.55,13.9419]
[1719048851781,7.4313,134.57,134.53,16.3058]
[1719048851977,13.9407,134.58,134.53,23.7389]
[1719048852183,7.4307,134.58,134.53,30.2489]
[1719048852401,7.4307,134.58,134.54,7.4326]
[1719048853771,7.4307,134.58,134.53,30.2488]
[1719048855007,6.51,134.58,134.5,16.3058]
[1719048855299,13.942,134.56,134.51,7.434]
[1719048855801,13.9423,134.55,134.5,23.7404]
[1719048855979,13.9423,134.55,134.5,30.2504]
[1719048856997,6.51,134.55,134.51,7.4342]
[1719048857388,13.9418,134.56,134.51,7.4342]
[1719048857897,7.4327,134.54,134.5,30.2504]
[1719048858104,7.4327,134.54,134.5,23.7404]
[1719048858511,13.9424,134.55,134.5,23.7404]
[1719048863817,7.4324,134.55,134.51,7.4342]
[1719048864106,6.51,134.55,134.51,7.4342]
[1719048866907,6.51,134.54,134.47,16.3058]
[1719048867207,6.51,134.52,134.48,7.4358]
[1719048867510,13.9439,134.52,134.47,23.7421]
[1719048867807,6.51,134.51,134.47,23.7421]
[1719048868311,6.51,134.51,134.48,7.4359]
[1719048870006,6.51,134.51,134.48,7.4359]
[1719048870398,6.51,134.51,134.47,23.7421]
[1719048871481,6.51,134.51,134.48,7.436]
[1719048874006,6.51,134.51,134.47,16.3058]
[1719048874007,6.51,134.52,134.49,7.4352]
[1719048874210,6.51,134.53,134.49,7.4352]
[1719048875289,6.51,134.52,134.48,7.4358]
[1719048875714,6.51,134.52,134.49,7.4354]
[1719048876793,6.51,134.52,134.48,7.4358]
[1719048877191,13.9438,134.52,134.48,7.4358]
[1719048877987,6.51,134.52,134.48,7.4358]
[1719048879724,13.9438,134.52,134.48,7.4358]
[1719048883998,13.9438,134.52,134.47,23.7423]
[1719048884636,18.5801,134.56,134.47,22.8158]
[1719048884799,6.51,134.53,134.48,6.68]
[1719048885707,20.0,134.55,134.51,7.4341]
[1719048886119,13.9422,134.55,134.5,13.9447]
[1719048886311,13.9422,134.55,134.5,7.4347]
[1719048887326,7.4322,134.55,134.5,7.4347]
[1719048887529,7.4329,134.54,134.49,13.9452]
[1719048887829,13.9429,134.54,134.49,13.9452]
[1719048888233,13.9429,134.54,134.49,7.4352]
[1719048889658,13.9429,134.54,134.5,7.4348]
[1719048890630,6.51,134.54,134.5,7.4348]
[1719048893809,13.9427,134.54,134.49,7.4353]
[1719048894915,40.5420316,134.58,134.48,6.51]
[1719048895235,13.9422,134.55,134.51,7.434]
[1719048895614,6.51,134.54,134.51,7.434]
[1719048897236,6.51,134.54,134.5,7.4347]
[1719048899339,7.4322,134.55,134.5,7.4347]
[1719048899525,6.51,134.54,134.5,7.4347]
[1719048901643,7.4322,134.55,134.5,7.4347]
[1719048901841,6.51,134.54,134.5,7.4347]
[1719048902543,7.4318,134.56,134.51,7.4339]
[1719048902849,6.51,134.55,134.51,7.4339]
[1719048903013,7.4318,134.56,134.51,7.4339]
[1719048903214,13.9418,134.56,134.51,7.4339]
[1719048903440,13.9418,134.56,134.5,13.9447]
[1719048903441,7.4322,134.55,134.5,13.9447]
[1719048906219,9.09178809,134.6,134.52,6.51]
[1719048906549,7.4308,134.58,134.53,6.51]
[1719048906847,7.4308,134.58,134.53,13.9431]
[1719048906848,13.9408,134.58,134.53,13.9431]
[1719048908145,13.9408,134.58,134.53,6.51]
[1719048909638,6.51,134.58,134.51,22.6416]
[1719048909827,6.51,134.57,134.52,6.51]
[1719048910029,6.51,134.57,134.51,29.1516]
[1719048910844,7.432,134.56,134.51,29.1516]
[1719048911733,13.9412,134.57,134.51,29.1516]
[1719048912247,13.9412,134.57,134.52,7.4337]
[1719048912553,6.51,134.57,134.52,7.4337]
[1719048912729,6.51,134.57,134.53,7.4332]
[1719048913125,7.4303,134.59,134.54,7.4324]
[1719048913349,0.8676006,134.61,134.53,6.51]
[1719048913548,7.4295,134.6,134.55,7.4318]
[1719048913727,13.9395,134.6,134.55,7.4318]
[1719048913942,0.8676006,134.61,134.56,7.4314]
[1719048914251,14.8067006,134.61,134.56,7.4314]
[1719048914948,14.8067006,134.61,134.55,13.9419]
[1719048915151,6.51,134.6,134.55,13.9419]
[1719048915855,13.9394,134.6,134.55,13.9419]
[1719048916747,13.9394,134.6,134.55,7.4319]
[1719048917548,7.4299,134.59,134.54,7.4326]
[1719048917732,13.9399,134.59,134.54,7.4326]
[1719048918154,6.51,134.59,134.54,7.4326]
[1719048918835,13.94,134.59,134.54,13.9426]
[1719048919029,6.51,134.6,134.55,7.4321]
[1719048919230,6.51,134.6,134.55,13.9421]
[1719048919451,8.2967006,134.61,134.56,7.4316]
[1719048919634,6.51,134.6,134.55,13.9418]
[1719048919841,6.51,134.6,134.55,7.4318]
[1719048920957,8.2967006,134.61,134.55,7.4318]
[1719048921171,6.51,134.6,134.55,7.4318]
[1719048921456,6.51,134.6,134.56,7.4315]
[1719048921655,7.3776006,134.61,134.57,7.431]
[1719048921861,0.8676006,134.61,134.57,7.431]
[1719048924959,0.8676006,134.61,134.58,7.4303]
[1719048925170,0.8676006,134.61,134.58,13.9403]
[1719048926664,0.8676006,134.61,134.6,13.9394]
[1719048926963,0.8676006,134.61,134.6,14.2794]
[1719048928344,0.8676006,134.61,134.59,15.515]
[1719048928345,0.8676006,134.61,134.59,22.9448]
[1719048928552,0.8676006,134.61,134.58,7.4302]
[1719048928751,0.8676006,134.61,134.58,13.9402]
[1719048929057,0.8676006,134.61,134.59,7.4298]
[1719048929249,0.8676006,134.61,134.6,7.4294]
[1719048929460,0.8676006,134.61,134.6,14.2794]
[1719048930643,0.8676006,134.61,134.6,30.8931]
[1719048931442,0.8676006,134.61,134.6,24.3831]
[1719048931746,24.8848006,134.68,134.62,7.428]
[1719048932177,6.51,134.67,134.62,7.428]
[1719048932365,6.51,134.67,134.62,13.938]
[1719048932664,13.9356,134.67,134.62,7.428]
[1719048932848,13.9356,134.67,134.62,13.938]
[1719048933044,18.3748006,134.68,134.63,7.4277]
[1719048933346,24.8848006,134.68,134.63,7.4277]
[1719048934149,18.3748006,134.68,134.63,7.4277]
[1719048934359,13.9351,134.68,134.63,7.4277]
[1719048935083,7.4251,134.68,134.63,7.4277]
[1719048935368,6.51,134.68,134.63,7.4277]
[1719048935669,13.9351,134.68,134.63,7.4277]
[1719048936171,13.9345,134.69,134.64,7.4272]
[1719048936379,6.51,134.69,134.65,7.4265]
[1719048936549,7.424,134.7,134.65,7.4265]
[1719048936741,13.934,134.7,134.65,7.4265]
[1719048938559,7.424,134.7,134.65,7.4265]
[1719048938757,13.934,134.7,134.65,7.4265]
[1719048940588,6.51,134.68,134.62,6.51]
[1719048940768,13.9353,134.68,134.63,7.4275]
[1719048944590,13.9356,134.67,134.62,7.4282]
[1719048945999,6.51,134.67,134.62,7.4282]
[1719048949393,13.9352,134.68,134.62,13.9382]
[1719048949789,7.4256,134.67,134.62,13.9382]
[1719048949990,13.9356,134.67,134.62,13.9382]
[1719048951294,7.4261,134.66,134.61,14.1087]
[1719048951595,13.9357,134.67,134.61,14.1087]
[1719048952702,13.9357,134.67,134.62,7.4282]
[1719048953109,13.9357,134.67,134.61,14.1085]
[1719048954202,13.9357,134.67,134.62,7.4281]
[1719048954388,13.9357,134.67,134.62,13.9381]
[1719048955298,13.9357,134.67,134.62,6.51]
[1719048955792,13.9357,134.67,134.61,7.5986]
[1719048955793,7.4261,134.66,134.61,14.1086]
[1719048956798,13.9358,134.67,134.61,14.1086]
[1719048957211,13.9358,134.67,134.62,7.4282]
[1719048957896,25.57428809,134.71,134.61,0.17]
[1719048958095,7.425,134.68,134.63,13.9375]
[1719048958297,13.935,134.68,134.63,7.4275]
[1719048958685,7.4255,134.67,134.62,13.9381]
[1719048959081,13.9355,134.67,134.62,13.9381]
[1719048961499,7.4255,134.67,134.62,13.9381]
[1719048961703,7.4251,134.68,134.63,7.4277]
[1719048961890,13.9351,134.68,134.63,7.4277]
[1719048964109,6.51,134.67,134.63,7.4277]
[1719048964399,13.9351,134.68,134.62,13.938]
[1719048964598,7.4256,134.67,134.62,13.938]
[1719048965883,7.4256,134.67,134.62,7.428]
[1719048966094,13.9356,134.67,134.62,7.428]
[1719048968997,6.51,134.66,134.62,7.428]
[1719048969307,7.4251,134.68,134.63,7.4276]
[1719048969611,6.51,134.67,134.63,7.4276]
[1719048969780,6.51,134.67,134.62,7.428]
[1719048970408,6.51,134.67,134.61,7.4286]
[1719048970706,7.4261,134.66,134.61,13.9386]
[1719048970886,13.9357,134.67,134.62,7.4282]
[1719048971380,7.4226,134.73,134.67,7.4253]
[1719048971589,6.51,134.71,134.67,7.4253]
[1719048971814,6.51,134.72,134.67,7.4253]
[1719048972114,13.9329,134.72,134.67,7.4253]
[1719048972415,6.51,134.71,134.67,7.4253]
[1719048972986,7.4229,134.72,134.67,7.4253]
[1719048973189,6.51,134.71,134.67,7.4253]
[1719048975906,7.4229,134.72,134.67,7.4253]
[1719048975907,6.51,134.72,134.67,7.4253]
[1719048976315,32.9269006,134.75,134.67,7.4253]
[1719048976316,7.4218,134.74,134.68,7.4249]
[1719048976522,13.9318,134.74,134.69,7.4241]
[1719048977018,13.9323,134.73,134.67,29.0147]
[1719048977515,13.9323,134.73,134.68,7.4248]
[1719048978186,7.4219,134.74,134.68,7.4248]
[1719048978386,13.9323,134.73,134.68,6.51]
[1719048978592,6.51,134.73,134.67,29.0146]
[1719048979103,13.9328,134.72,134.67,22.5046]
[1719048982016,18.5542,134.74,134.67,15.0794]
[1719048982194,13.9335,134.71,134.67,15.0794]
[1719048983526,13.9335,134.71,134.64,15.0794]
[1719048983527,6.51,134.69,134.64,15.0794]
[1719048983730,7.4251,134.68,134.64,15.0794]
[1719048985015,13.9347,134.69,134.64,15.0794]
[1719048986505,7.425,134.68,134.64,15.0794]
[1719048987835,13.9346,134.69,134.64,22.5065]
[1719048988020,13.9339,134.7,134.65,13.9363]
[1719048988335,13.9339,134.7,134.64,29.0164]
[1719048988515,13.9339,134.7,134.65,0.34]
[1719048988715,13.9339,134.7,134.65,7.7665]
[1719048988933,7.4235,134.71,134.65,7.7665]
[1719048989134,6.51,134.7,134.65,7.7665]
[1719048989335,7.4235,134.71,134.66,7.426]
[1719048989634,13.9335,134.71,134.66,7.426]
[1719048989832,7.4229,134.72,134.66,13.936]
[1719048990033,7.4224,134.73,134.65,0.34]
[1719048990213,13.9319,134.74,134.69,6.51]
[1719048990615,7.4219,134.74,134.69,21.7341]
[1719048990816,13.9319,134.74,134.69,21.7341]
[1719048991430,7.4223,134.73,134.69,21.7341]
[1719048991736,7.4223,134.73,134.69,15.2241]
[1719048992037,7.4228,134.72,134.69,15.2241]
[1719048993946,13.9324,134.73,134.69,15.2241]
[1719048994416,7.4229,134.72,134.69,15.2241]
[1719048994939,7.4224,134.73,134.69,15.2241]
[1719048998412,7.4236,134.71,134.69,15.2241]
[1719049001044,13.933,134.72,134.69,15.2241]
[1719049001650,7.423,134.72,134.69,15.2241]
[1719049001845,13.933,134.72,134.69,15.2241]
[1719049004032,7.4242,134.7,134.67,6.305]
[1719049006059,7.4244,134.69,134.65,15.2241]
[1719049006854,13.9344,134.69,134.65,15.2241]
[1719049008433,13.9352,134.68,134.65,15.2241]
[1719049009444,6.51,134.68,134.65,15.2241]
[1719049009651,13.9351,134.68,134.65,15.2241]
[1719049011832,6.51,134.68,134.65,15.2241]
[1719049012031,7.4245,134.69,134.65,15.2241]
[1719049013055,7.425,134.68,134.65,15.2241]
[1719049017535,18.5581,134.72,134.65,15.2241]
[1719049017735,6.51,134.7,134.65,21.7341]
[1719049017946,13.9341,134.7,134.65,29.1604]
[1719049018158,7.4241,134.7,134.65,29.1604]
[1719049019160,13.9341,134.7,134.65,29.1604]
[1719049019465,13.9341,134.7,134.65,22.6504]
[1719049019790,7.4241,134.7,134.65,29.1604]
[1719049021670,13.9336,134.71,134.66,14.106]
[1719049021849,7.4236,134.71,134.66,14.106]
[1719049023673,7.4239,134.7,134.66,6.68]
[1719049028371,7.4239,134.7,134.66,0.17]
[1719049028569,7.4239,134.7,134.66,0.34]
[1719049029463,13.9339,134.7,134.66,0.34]
[1719049031476,7.4239,134.7,134.66,0.34]
[1719049031975,13.9339,134.7,134.66,0.34]
[1719049032368,6.51,134.7,134.65,15.2241]
[1719049032679,16.11444816,134.74,134.65,15.2241]
[1719049032680,6.51,134.69,134.65,15.2241]
[1719049032872,7.4256,134.67,134.65,15.2241]
[1719049033080,7.4252,134.68,134.65,15.2241]
[1719049036681,13.9346,134.69,134.65,15.2241]
[1719049036879,6.51,134.68,134.65,15.2241]
[1719049037365,6.51,134.67,134.61,21.869]
[1719049037563,6.51,134.67,134.63,7.4274]
[1719049043484,6.51,134.67,134.62,6.85]
[1719049043696,13.9353,134.68,134.64,7.4271]
[1719049050390,13.9353,134.68,134.63,7.4274]
[1719049059113,7.4247,134.69,134.64,7.4271]
[1719049059422,13.9347,134.69,134.64,7.4271]
[1719049060810,0.08194816,134.72,134.63,6.51]
[1719049060991,7.4228,134.72,134.67,13.935]
[1719049061192,6.51,134.72,134.68,7.7649]
[1719049061909,6.51,134.72,134.68,0.34]
[1719049062802,7.4225,134.73,134.68,0.34]
[1719049063610,16.11444816,134.74,134.68,0.34]
[1719049063611,7.4229,134.72,134.68,0.34]
[1719049065209,7.4229,134.72,134.67,7.5953]
[1719049065510,7.4229,134.72,134.68,0.34]
[1719049066316,7.4233,134.71,134.66,13.9359]
[1719049066608,7.4233,134.71,134.67,0.34]
[1719049066793,7.4233,134.71,134.66,13.9359]
[1719049067512,7.4233,134.71,134.66,6.51]
[1719049067710,7.4239,134.7,134.65,20.3471]
[1719049068013,7.4239,134.7,134.66,0.34]
[1719049068188,13.9339,134.7,134.66,0.34]
[1719049070514,6.51,134.7,134.66,7.7661]
[1719049071016,13.9335,134.71,134.66,7.7661]
[1719049072094,6.51,134.71,134.66,7.7661]
[1719049074018,6.51,134.71,134.67,7.4255]
[1719049076525,13.9333,134.71,134.67,7.4255]
[1719049076727,13.9333,134.71,134.66,0.34]
[1719049076937,6.51,134.71,134.67,7.4254]
[1719049080509,13.9333,134.71,134.67,7.4254]
[1719049080909,6.51,134.71,134.67,7.4254]
[1719049081623,7.422,134.74,134.68,7.4244]
[1719049081925,6.51,134.72,134.68,7.4244]
[1719049082923,14.7991006,134.75,134.7,7.4235]
[1719049083109,7.3776006,134.75,134.71,7.4233]
[1719049083631,0.8676006,134.75,134.71,7.4233]
[1719049085140,14.7987006,134.75,134.7,13.9336]
[1719049085339,14.7987006,134.75,134.71,0.34]
[1719049086635,7.3776006,134.75,134.71,7.7633]
[1719049089532,0.8676006,134.75,134.71,7.7633]
[1719049089844,0.8676006,134.75,134.71,7.7631]
[1719049090129,0.8676006,134.75,134.72,7.4227]
[1719049091516,0.8676006,134.75,134.72,13.9327]
[1719049094322,0.8676006,134.75,134.72,13.9322]
[1719049094517,0.8676006,134.75,134.69,22.1753]
[1719049094742,8.2889006,134.75,134.7,13.9338]
[1719049095342,7.4224,134.73,134.69,15.8485]
[1719049095553,7.4224,134.73,134.69,22.3585]
[1719049095848,7.3776006,134.75,134.64,23.4129]
[1719049095849,7.4243,134.7,134.64,23.4129]
[1719049096148,6.51,134.71,134.66,13.9358]
[1719049096350,7.4233,134.71,134.66,13.9358]
[1719049096725,13.933,134.72,134.66,13.9358]
[1719049096924,13.933,134.72,134.66,13.9357]
[1719049097128,13.933,134.72,134.67,8.28148132]
[1719049097364,13.933,134.72,134.67,7.4253]
[1719049098154,6.51,134.72,134.66,0.17]
[1719049098359,6.51,134.71,134.65,6.68]
[1719049098737,6.51,134.71,134.65,0.17]
[1719049098941,6.51,134.71,134.65,6.68]
[1719049099455,6.51,134.71,134.67,7.4253]
[1719049099945,13.9331,134.72,134.67,7.4253]
[1719049102252,6.51,134.71,134.67,7.4253]
[1719049103033,13.9333,134.71,134.66,13.9358]
[1719049103450,6.51,134.71,134.67,7.4253]
[1719049104154,13.933,134.72,134.67,13.9353]
[1719049105257,13.933,134.72,134.67,6.51]
[1719049105258,6.51,134.72,134.67,6.51]
[1719049105469,13.9343,134.7,134.65,7.4263]
[1719049106040,13.9343,134.7,134.66,7.426]
[1719049106764,6.51,134.7,134.66,7.426]
[1719049107436,13.9334,134.71,134.66,7.426]
[1719049109881,13.9334,134.71,134.67,7.4255]
[1719049110063,13.933,134.72,134.67,7.4255]
[1719049110481,7.4234,134.71,134.66,13.9358]
[1719049110773,13.9334,134.71,134.66,13.9358]
[1719049111083,6.51,134.7,134.66,7.4258]
[1719049112070,6.51,134.7,134.64,15.986]
[1719049112387,6.51,134.7,134.66,7.4256]
[1719049116081,6.51,134.7,134.67,7.4254]
[1719049119386,6.51,134.71,134.67,7.4254]
[1719049120174,13.9334,134.71,134.66,7.4258]
[1719049123098,13.9334,134.71,134.63,25.5149]
[1719049123099,6.51,134.68,134.62,6.51]
[1719049123389,6.51,134.68,134.64,7.4269]
[1719049123966,6.51,134.68,134.65,7.4266]
[1719049124494,6.51,134.69,134.65,7.4266]
[1719049127515,13.9345,134.69,134.64,7.4269]
[1719049128304,7.425,134.68,134.64,7.4269]
[1719049128614,7.425,134.68,134.63,13.9374]
[1719049128785,13.935,134.68,134.63,13.9374]
[1719049128974,13.935,134.68,134.64,7.4271]
[1719049129599,6.51,134.68,134.64,7.4271]
[1719049130791,13.9352,134.68,134.63,7.4276]
[1719049131110,13.9352,134.68,134.63,13.9376]
[1719049139614,7.4252,134.68,134.63,13.9376]
[1719049141499,13.9352,134.68,134.63,13.9376]
[1719049142323,7.4252,134.68,134.63,7.4276]
[1719049142525,13.9352,134.68,134.63,7.4276]
[1719049144436,13.9352,134.68,134.63,13.9376]
[1719049145505,15.367,134.7,134.62,0.34]
[1719049145711,29.3012,134.7,134.65,7.4263]
[1719049145910,7.4245,134.69,134.64,7.427]
[1719049146935,7.4245,134.69,134.65,7.4265]
[1719049147514,7.4245,134.69,134.64,7.427]
[1719049153846,7.4245,134.69,134.65,7.4266]
[1719049157747,21.877,134.7,134.66,7.4258]
[1719049158041,15.367,134.7,134.66,7.4258]
[1719049158411,22.791,134.7,134.66,7.4258]
[1719049159348,22.791,134.7,134.65,13.9363]
[1719049159842,7.4245,134.69,134.64,13.937]
[1719049160145,7.4252,134.68,134.63,14.2772]
[1719049160640,13.9352,134.68,134.63,7.4276]
[1719049160938,6.51,134.67,134.63,7.4276]
[1719049161325,13.9355,134.67,134.63,7.4276]
[1719049161620,6.51,134.67,134.63,7.4276]
[1719049163332,13.9352,134.68,134.63,7.4276]
[1719049167238,6.51,134.65,134.56,16.6357]
[1719049167464,15.2168,134.66,134.56,16.6357]
[1719049167465,6.51,134.64,134.59,7.4299]
[1719049167626,6.51,134.63,134.56,35.2144]
[1719049167824,13.9379,134.63,134.58,7.4304]
[1719049169345,6.51,134.63,134.59,7.4299]
[1719049169533,6.51,134.63,134.6,7.4294]
[1719049170249,6.51,134.63,134.59,7.4298]
[1719049170862,7.4284,134.62,134.58,6.51]
[1719049171026,6.51,134.63,134.57,0.34]
[1719049171344,13.9378,134.63,134.58,7.7701]
[1719049172031,6.51,134.63,134.59,7.4298]
[1719049172243,13.9372,134.64,134.6,7.4293]
[1719049172741,7.4268,134.65,134.6,7.4293]
[1719049172939,6.51,134.64,134.6,7.4293]
[1719049174566,15.2168,134.66,134.62,6.51]
[1719049174924,15.2168,134.66,134.62,13.9379]
[1719049175527,13.7645,134.67,134.62,13.9379]
[1719049175722,20.2745,134.67,134.62,13.9379]
[1719049177838,20.2745,134.67,134.62,7.4279]
[1719049180535,6.51,134.66,134.62,7.4279]
[1719049181264,20.2745,134.67,134.63,7.4277]
[1719049182654,20.2745,134.67,134.62,7.428]
[1719049186364,6.51,134.66,134.62,7.428]
[1719049190254,6.51,134.65,134.57,18.5773]
[1719049190462,7.4272,134.64,134.59,6.51]
[1719049190653,7.4272,134.64,134.6,0.34]
[1719049191386,7.4272,134.64,134.59,6.85]
[1719049191672,6.51,134.63,134.59,7.5997]
[1719049192851,6.51,134.63,134.6,7.4292]
[1719049193041,6.51,134.63,134.59,7.4298]
[1719049193651,6.51,134.61,134.57,7.4307]
[1719049193856,6.51,134.61,134.58,7.4304]